[Event "Live Chess"]
[Site "Chess.com"]
[Date "2010.12.06"]
[Round "-"]
[White "hipposcottimus"]
[Black "PaperTiger"]
[Result "1-0"]
[CurrentPosition "3rN2k/1p4pp/2p3n1/2B2p2/2B5/3P4/PP3PPP/R4RK1 b - -"]
[Timezone "UTC"]
[ECO "C41"]
[ECOUrl "https://www.chess.com/openings/Philidor-Defense-3.Bc4-Be7-4.d4"]
[UTCDate "2010.12.06"]
[UTCTime "22:50:01"]
[WhiteElo "1635"]
[BlackElo "1609"]
[TimeControl "60"]
[Termination "hipposcottimus won by resignation"]
[StartTime "22:50:01"]
[EndDate "2010.12.06"]
[EndTime "22:51:14"]
[Link "https://www.chess.com/game/live/74739000"]

1. e4 {[%clk 0:01:00]} 1... e5 {[%clk 0:01:00]} 2. Nf3 {[%clk 0:00:59.5]} 2... d6 {[%clk 0:00:59.3]} 3. Bc4 {[%clk 0:00:59.1]} 3... Be7 {[%clk 0:00:58.5]} 4. d4 {[%clk 0:00:58.7]} 4... c6 {[%clk 0:00:57.8]} 5. dxe5 {[%clk 0:00:56.7]} 5... Bg4 {[%clk 0:00:56.9]} 6. exd6 {[%clk 0:00:53.9]} 6... Bxd6 {[%clk 0:00:55.6]} 7. O-O {[%clk 0:00:51.9]} 7... Qc7 {[%clk 0:00:54.7]} 8. Qd3 {[%clk 0:00:50.3]} 8... Ne7 {[%clk 0:00:52.2]} 9. e5 {[%clk 0:00:48.6]} 9... Bxf3 {[%clk 0:00:47.9]} 10. exd6 {[%clk 0:00:46.1]} 10... Be2 {[%clk 0:00:42.9]} 11. dxc7 {[%clk 0:00:36.9]} 11... Bxd3 {[%clk 0:00:41.1]} 12. cxb8=Q+ {[%clk 0:00:35.1]} 12... Rxb8 {[%clk 0:00:39.9]} 13. cxd3 {[%clk 0:00:34.7]} 13... O-O {[%clk 0:00:39.2]} 14. Nc3 {[%clk 0:00:33.8]} 14... Ng6 {[%clk 0:00:38.1]} 15. Be3 {[%clk 0:00:33.1]} 15... Kh8 {[%clk 0:00:35.9]} 16. Bxa7 {[%clk 0:00:32.1]} 16... Rbc8 {[%clk 0:00:34.1]} 17. Bc5 {[%clk 0:00:31.7]} 17... Rfe8 {[%clk 0:00:32.6]} 18. Ne4 {[%clk 0:00:28.6]} 18... f5 {[%clk 0:00:31.5]} 19. Nd6 {[%clk 0:00:27.7]} 19... Rcd8 {[%clk 0:00:30.7]} 20. Nxe8 {[%clk 0:00:26.8]} 1-0

[Event "Live Chess"]
[Site "Chess.com"]
[Date "2010.12.06"]
[Round "-"]
[White "Snart"]
[Black "hipposcottimus"]
[Result "0-1"]
[CurrentPosition "r7/ppp2Rpp/3k4/4p3/3nP3/1B3K1P/PPP5/8 w - -"]
[Timezone "UTC"]
[ECO "A40"]
[ECOUrl "https://www.chess.com/openings/Englund-Gambit-Hartlaub-Charlick-Gambit"]
[UTCDate "2010.12.06"]
[UTCTime "22:47:40"]
[WhiteElo "1462"]
[BlackElo "1627"]
[TimeControl "60"]
[Termination "hipposcottimus won on time"]
[StartTime "22:47:40"]
[EndDate "2010.12.06"]
[EndTime "22:49:31"]
[Link "https://www.chess.com/game/live/74738346"]

1. d4 {[%clk 0:01:00]} 1... e5 {[%clk 0:01:00]} 2. dxe5 {[%clk 0:00:58.1]} 2... d6 {[%clk 0:00:58.5]} 3. Nf3 {[%clk 0:00:58.1]} 3... dxe5 {[%clk 0:00:57.1]} 4. e4 {[%clk 0:00:56.5]} 4... Qxd1+ {[%clk 0:00:53.3]} 5. Kxd1 {[%clk 0:00:54.4]} 5... Nf6 {[%clk 0:00:53]} 6. Bd3 {[%clk 0:00:51.6]} 6... Bd6 {[%clk 0:00:51.7]} 7. Re1 {[%clk 0:00:45.1]} 7... Ng4 {[%clk 0:00:50.7]} 8. Nbd2 {[%clk 0:00:43.4]} 8... Nxf2+ {[%clk 0:00:49.3]} 9. Ke2 {[%clk 0:00:41.4]} 9... Ng4 {[%clk 0:00:48.5]} 10. Bc4 {[%clk 0:00:37.9]} 10... Nf6 {[%clk 0:00:48]} 11. Bxf7+ {[%clk 0:00:36.5]} 11... Ke7 {[%clk 0:00:42.1]} 12. Bb3 {[%clk 0:00:31.2]} 12... Bg4 {[%clk 0:00:41.6]} 13. h3 {[%clk 0:00:26.9]} 13... Bh5 {[%clk 0:00:40.5]} 14. Nc4 {[%clk 0:00:22.9]} 14... Rd8 {[%clk 0:00:38.1]} 15. Nxd6 {[%clk 0:00:20.3]} 15... Rxd6 {[%clk 0:00:37.4]} 16. Bg5 {[%clk 0:00:20.3]} 16... Kf8 {[%clk 0:00:35.7]} 17. Bxf6 {[%clk 0:00:17.6]} 17... Rxf6 {[%clk 0:00:35.3]} 18. Kf1 {[%clk 0:00:12.8]} 18... Bxf3 {[%clk 0:00:31.8]} 19. gxf3 {[%clk 0:00:10.8]} 19... Rxf3+ {[%clk 0:00:31.5]} 20. Ke2 {[%clk 0:00:08.8]} 20... Nc6 {[%clk 0:00:28.3]} 21. Rf1 {[%clk 0:00:07.2]} 21... Rxf1 {[%clk 0:00:21.6]} 22. Rxf1+ {[%clk 0:00:04.9]} 22... Ke7 {[%clk 0:00:21.3]} 23. Rf7+ {[%clk 0:00:02.9]} 23... Kd6 {[%clk 0:00:21]} 24. Kf3 {[%clk 0:00:01]} 24... Nd4+ {[%clk 0:00:20.1]} 0-1

[Event "Live Chess"]
[Site "Chess.com"]
[Date "2010.12.06"]
[Round "-"]
[White "v19"]
[Black "hipposcottimus"]
[Result "1-0"]
[CurrentPosition "5Q1k/p5pp/2p5/8/5p2/P4P1P/1PP2PP1/3rR1K1 b - -"]
[Timezone "UTC"]
[ECO "D02"]
[ECOUrl "https://www.chess.com/openings/Queens-Pawn-Opening-Zukertort-Variation"]
[UTCDate "2010.12.06"]
[UTCTime "22:39:27"]
[WhiteElo "1673"]
[BlackElo "1627"]
[TimeControl "60"]
[Termination "v19 won by checkmate"]
[StartTime "22:39:27"]
[EndDate "2010.12.06"]
[EndTime "22:40:57"]
[Link "https://www.chess.com/game/live/74736286"]

1. Nf3 {[%clk 0:01:00]} 1... d5 {[%clk 0:01:00]} 2. d4 {[%clk 0:01:00]} 2... Bg4 {[%clk 0:00:59.6]} 3. Bg5 {[%clk 0:01:00]} 3... Bxf3 {[%clk 0:00:58]} 4. exf3 {[%clk 0:01:00]} 4... f6 {[%clk 0:00:57.8]} 5. Bd2 {[%clk 0:00:58.8]} 5... e6 {[%clk 0:00:57.4]} 6. Bd3 {[%clk 0:00:58.8]} 6... Ne7 {[%clk 0:00:57]} 7. Nc3 {[%clk 0:00:58.4]} 7... c6 {[%clk 0:00:55]} 8. Qe2 {[%clk 0:00:57.2]} 8... Nd7 {[%clk 0:00:54.5]} 9. a3 {[%clk 0:00:55.3]} 9... Nb6 {[%clk 0:00:54.2]} 10. h3 {[%clk 0:00:54.5]} 10... Nc4 {[%clk 0:00:53.7]} 11. Bf4 {[%clk 0:00:50.7]} 11... e5 {[%clk 0:00:51.1]} 12. dxe5 {[%clk 0:00:48.7]} 12... fxe5 {[%clk 0:00:49.6]} 13. Bh2 {[%clk 0:00:47.9]} 13... Ng6 {[%clk 0:00:46.1]} 14. Bxc4 {[%clk 0:00:46.3]} 14... dxc4 {[%clk 0:00:45.4]} 15. Rd1 {[%clk 0:00:44.5]} 15... Qf6 {[%clk 0:00:40.5]} 16. O-O {[%clk 0:00:39.7]} 16... Bd6 {[%clk 0:00:40]} 17. Rfe1 {[%clk 0:00:39]} 17... O-O {[%clk 0:00:39]} 18. Ne4 {[%clk 0:00:38.2]} 18... Qd8 {[%clk 0:00:35]} 19. Nxd6 {[%clk 0:00:37.3]} 19... Qf6 {[%clk 0:00:33.2]} 20. Nxb7 {[%clk 0:00:36]} 20... Nf4 {[%clk 0:00:32.7]} 21. Bxf4 {[%clk 0:00:34]} 21... exf4 {[%clk 0:00:32]} 22. Nc5 {[%clk 0:00:33]} 22... Rae8 {[%clk 0:00:31.4]} 23. Ne4 {[%clk 0:00:32.1]} 23... Qg6 {[%clk 0:00:29.6]} 24. Qxc4+ {[%clk 0:00:29.7]} 24... Kh8 {[%clk 0:00:28.3]} 25. Nd6 {[%clk 0:00:29.2]} 25... Rd8 {[%clk 0:00:27.2]} 26. Nf7+ {[%clk 0:00:25.3]} 26... Qxf7 {[%clk 0:00:24.1]} 27. Qxf7 {[%clk 0:00:23.9]} 27... Rxd1 {[%clk 0:00:23.3]} 28. Qxf8# {[%clk 0:00:21.3]} 1-0

[Event "Live Chess"]
[Site "Chess.com"]
[Date "2010.12.06"]
[Round "-"]
[White "hipposcottimus"]
[Black "v19"]
[Result "1-0"]
[CurrentPosition "2r2r1k/5pbQ/6p1/p4pN1/8/8/q4PPP/3qR1K1 b - -"]
[Timezone "UTC"]
[ECO "B01"]
[ECOUrl "https://www.chess.com/openings/Scandinavian-Defense-Mieses-Kotrc-Variation...4.d4-Nf6-5.Nf3-Bg4"]
[UTCDate "2010.12.06"]
[UTCTime "22:37:30"]
[WhiteElo "1634"]
[BlackElo "1666"]
[TimeControl "60"]
[Termination "hipposcottimus won by checkmate"]
[StartTime "22:37:30"]
[EndDate "2010.12.06"]
[EndTime "22:39:10"]
[Link "https://www.chess.com/game/live/74735760"]

1. e4 {[%clk 0:01:00]} 1... d5 {[%clk 0:01:00]} 2. exd5 {[%clk 0:00:58.8]} 2... Qxd5 {[%clk 0:01:00]} 3. Nc3 {[%clk 0:00:58.5]} 3... Qd8 {[%clk 0:01:00]} 4. d4 {[%clk 0:00:57.4]} 4... Nf6 {[%clk 0:01:00]} 5. Nf3 {[%clk 0:00:57.1]} 5... Bg4 {[%clk 0:01:00]} 6. Be2 {[%clk 0:00:55.6]} 6... Bxf3 {[%clk 0:01:00]} 7. Bxf3 {[%clk 0:00:55.3]} 7... Nc6 {[%clk 0:00:57.7]} 8. d5 {[%clk 0:00:52.2]} 8... Nb8 {[%clk 0:00:53]} 9. O-O {[%clk 0:00:51.8]} 9... c6 {[%clk 0:00:50.6]} 10. Bg5 {[%clk 0:00:49.8]} 10... g6 {[%clk 0:00:48.6]} 11. Bxf6 {[%clk 0:00:48.8]} 11... exf6 {[%clk 0:00:48.6]} 12. dxc6 {[%clk 0:00:48.1]} 12... Nxc6 {[%clk 0:00:46.8]} 13. Bxc6+ {[%clk 0:00:45.6]} 13... bxc6 {[%clk 0:00:45]} 14. Re1+ {[%clk 0:00:45.1]} 14... Be7 {[%clk 0:00:43.3]} 15. Ne4 {[%clk 0:00:39.9]} 15... O-O {[%clk 0:00:41.5]} 16. Qf3 {[%clk 0:00:36.3]} 16... f5 {[%clk 0:00:40.3]} 17. Ng3 {[%clk 0:00:35.2]} 17... c5 {[%clk 0:00:38.1]} 18. Ne2 {[%clk 0:00:33.1]} 18... Bf6 {[%clk 0:00:37.4]} 19. Qg3 {[%clk 0:00:32.7]} 19... Bxb2 {[%clk 0:00:36.2]} 20. Rab1 {[%clk 0:00:30.8]} 20... Bg7 {[%clk 0:00:36.2]} 21. Rbd1 {[%clk 0:00:29.7]} 21... Qf6 {[%clk 0:00:35.2]} 22. Nf4 {[%clk 0:00:29]} 22... a5 {[%clk 0:00:34.1]} 23. Nd5 {[%clk 0:00:28.3]} 23... Qb2 {[%clk 0:00:32.6]} 24. Ne7+ {[%clk 0:00:28]} 24... Kh8 {[%clk 0:00:29.6]} 25. Nd5 {[%clk 0:00:20.5]} 25... Qxc2 {[%clk 0:00:28.6]} 26. Nf4 {[%clk 0:00:20.3]} 26... Qxa2 {[%clk 0:00:27.5]} 27. Qh4 {[%clk 0:00:19]} 27... c4 {[%clk 0:00:25.1]} 28. Qh3 {[%clk 0:00:18.2]} 28... c3 {[%clk 0:00:23.5]} 29. Qh4 {[%clk 0:00:17.9]} 29... Rac8 {[%clk 0:00:23.1]} 30. Nh3 {[%clk 0:00:16.5]} 30... c2 {[%clk 0:00:22.6]} 31. Ng5 {[%clk 0:00:16.2]} 31... cxd1=Q {[%clk 0:00:21.4]} 32. Qxh7# {[%clk 0:00:15.1]} 1-0

[Event "Live Chess"]
[Site "Chess.com"]
[Date "2010.12.06"]
[Round "-"]
[White "hipposcottimus"]
[Black "kalbs"]
[Result "1-0"]
[CurrentPosition "r1k5/1p3ppp/p1pQpq2/P7/1PP5/8/5PPP/3R2K1 b - c3"]
[Timezone "UTC"]
[ECO "B01"]
[ECOUrl "https://www.chess.com/openings/Scandinavian-Defense-Mieses-Kotrc-Main-Line-4.d4-Nf6-5.Bd2"]
[UTCDate "2010.12.06"]
[UTCTime "22:35:12"]
[WhiteElo "1625"]
[BlackElo "1623"]
[TimeControl "60"]
[Termination "hipposcottimus won on time"]
[StartTime "22:35:12"]
[EndDate "2010.12.06"]
[EndTime "22:37:09"]
[Link "https://www.chess.com/game/live/74735083"]

1. e4 {[%clk 0:01:00]} 1... d5 {[%clk 0:01:00]} 2. exd5 {[%clk 0:00:58.4]} 2... Qxd5 {[%clk 0:00:59.5]} 3. Nc3 {[%clk 0:00:58.1]} 3... Qa5 {[%clk 0:00:59.1]} 4. d4 {[%clk 0:00:57]} 4... Nf6 {[%clk 0:00:58.6]} 5. Bd2 {[%clk 0:00:56.5]} 5... Qb6 {[%clk 0:00:57.1]} 6. Nf3 {[%clk 0:00:54.2]} 6... Bg4 {[%clk 0:00:56.6]} 7. Bb5+ {[%clk 0:00:53.6]} 7... c6 {[%clk 0:00:55.2]} 8. Be2 {[%clk 0:00:53.3]} 8... e6 {[%clk 0:00:52.1]} 9. O-O {[%clk 0:00:51.6]} 9... Bd6 {[%clk 0:00:51.1]} 10. Ne5 {[%clk 0:00:50.8]} 10... Bxe2 {[%clk 0:00:48.5]} 11. Qxe2 {[%clk 0:00:50.2]} 11... Nbd7 {[%clk 0:00:46.8]} 12. Be3 {[%clk 0:00:44.5]} 12... Qa5 {[%clk 0:00:44.5]} 13. Nxd7 {[%clk 0:00:42.3]} 13... Kxd7 {[%clk 0:00:43.1]} 14. Bd2 {[%clk 0:00:42.1]} 14... Qb6 {[%clk 0:00:38.9]} 15. Ne4 {[%clk 0:00:40.9]} 15... Qxd4 {[%clk 0:00:35.1]} 16. Nxf6+ {[%clk 0:00:39.7]} 16... Qxf6 {[%clk 0:00:32.1]} 17. Rad1 {[%clk 0:00:39.3]} 17... Kc7 {[%clk 0:00:30.9]} 18. Bc3 {[%clk 0:00:36.5]} 18... Qh6 {[%clk 0:00:27.7]} 19. Be5 {[%clk 0:00:30.6]} 19... Rhd8 {[%clk 0:00:23.1]} 20. Bxd6+ {[%clk 0:00:29.2]} 20... Rxd6 {[%clk 0:00:21.6]} 21. Rxd6 {[%clk 0:00:28.9]} 21... Kxd6 {[%clk 0:00:20.8]} 22. Rd1+ {[%clk 0:00:28.7]} 22... Kc7 {[%clk 0:00:20.3]} 23. Qd3 {[%clk 0:00:28.4]} 23... Kb6 {[%clk 0:00:16.9]} 24. a4 {[%clk 0:00:25.8]} 24... Qf6 {[%clk 0:00:13.7]} 25. b4 {[%clk 0:00:24]} 25... a6 {[%clk 0:00:11.7]} 26. a5+ {[%clk 0:00:23.5]} 26... Ka7 {[%clk 0:00:10.1]} 27. Qe3+ {[%clk 0:00:23.2]} 27... Kb8 {[%clk 0:00:09.1]} 28. Qd3 {[%clk 0:00:19.4]} 28... Kc7 {[%clk 0:00:06.7]} 29. Qd6+ {[%clk 0:00:18.8]} 29... Kc8 {[%clk 0:00:04.9]} 30. Qd7+ {[%clk 0:00:17.8]} 30... Kb8 {[%clk 0:00:04.2]} 31. Qd6+ {[%clk 0:00:16.7]} 31... Kc8 {[%clk 0:00:03.3]} 32. c4 {[%clk 0:00:15.5]} 1-0

[Event "Live Chess"]
[Site "Chess.com"]
[Date "2010.12.06"]
[Round "-"]
[White "kalbs"]
[Black "hipposcottimus"]
[Result "1-0"]
[CurrentPosition "8/p3r2p/2R3p1/1P2Bk2/P3PP2/5K2/7P/8 b - -"]
[Timezone "UTC"]
[ECO "A09"]
[ECOUrl "https://www.chess.com/openings/Reti-Opening-Reti-Gambit"]
[UTCDate "2010.12.06"]
[UTCTime "22:32:29"]
[WhiteElo "1631"]
[BlackElo "1617"]
[TimeControl "60"]
[Termination "kalbs won by checkmate"]
[StartTime "22:32:29"]
[EndDate "2010.12.06"]
[EndTime "22:34:29"]
[Link "https://www.chess.com/game/live/74734337"]

1. Nf3 {[%clk 0:01:00]} 1... d5 {[%clk 0:01:00]} 2. c4 {[%clk 0:00:59.4]} 2... Bg4 {[%clk 0:00:59.7]} 3. cxd5 {[%clk 0:00:58.4]} 3... Bxf3 {[%clk 0:00:59.3]} 4. gxf3 {[%clk 0:00:57.4]} 4... Qxd5 {[%clk 0:00:59]} 5. Nc3 {[%clk 0:00:56.6]} 5... Qd8 {[%clk 0:00:57.8]} 6. Bg2 {[%clk 0:00:56.2]} 6... Nc6 {[%clk 0:00:57.5]} 7. e3 {[%clk 0:00:54.1]} 7... Qd7 {[%clk 0:00:57.1]} 8. O-O {[%clk 0:00:53.6]} 8... e5 {[%clk 0:00:56.8]} 9. d4 {[%clk 0:00:52.9]} 9... f6 {[%clk 0:00:55.9]} 10. Qb3 {[%clk 0:00:50.2]} 10... Na5 {[%clk 0:00:50.5]} 11. Qa4 {[%clk 0:00:44.8]} 11... Qxa4 {[%clk 0:00:47.7]} 12. Nxa4 {[%clk 0:00:43.6]} 12... Bd6 {[%clk 0:00:47.4]} 13. dxe5 {[%clk 0:00:42.4]} 13... Bxe5 {[%clk 0:00:46]} 14. b4 {[%clk 0:00:41.2]} 14... Nc4 {[%clk 0:00:44]} 15. Rb1 {[%clk 0:00:39.3]} 15... Nd6 {[%clk 0:00:43.7]} 16. f4 {[%clk 0:00:38.4]} 16... Ne7 {[%clk 0:00:43.4]} 17. fxe5 {[%clk 0:00:36.6]} 17... fxe5 {[%clk 0:00:43.1]} 18. Bxb7 {[%clk 0:00:35.5]} 18... Nxb7 {[%clk 0:00:41.2]} 19. Bb2 {[%clk 0:00:33.9]} 19... Kf7 {[%clk 0:00:39.8]} 20. Bxe5 {[%clk 0:00:32.5]} 20... Ng6 {[%clk 0:00:38.7]} 21. Bxc7 {[%clk 0:00:29.6]} 21... Rhf8 {[%clk 0:00:38.3]} 22. Rbd1 {[%clk 0:00:24.4]} 22... Kg8 {[%clk 0:00:36.9]} 23. Nc5 {[%clk 0:00:21.3]} 23... Rf5 {[%clk 0:00:36.1]} 24. Nxb7 {[%clk 0:00:19.5]} 24... Rg5+ {[%clk 0:00:35.3]} 25. Kh1 {[%clk 0:00:17.4]} 25... Rc8 {[%clk 0:00:35]} 26. Rd7 {[%clk 0:00:13.5]} 26... Rf5 {[%clk 0:00:27.8]} 27. Rd8+ {[%clk 0:00:12.6]} 27... Rxd8 {[%clk 0:00:25.9]} 28. Nxd8 {[%clk 0:00:11.8]} 28... Rf8 {[%clk 0:00:25.6]} 29. b5 {[%clk 0:00:08.9]} 29... Ne5 {[%clk 0:00:23.7]} 30. Bxe5 {[%clk 0:00:06.5]} 30... Rxd8 {[%clk 0:00:21.9]} 31. f4 {[%clk 0:00:06.1]} 31... Re8 {[%clk 0:00:21.1]} 32. Kg2 {[%clk 0:00:05.5]} 32... Re7 {[%clk 0:00:19]} 33. Kf3 {[%clk 0:00:05]} 33... Kf7 {[%clk 0:00:18.6]} 34. Rc1 {[%clk 0:00:04.3]} 34... g6 {[%clk 0:00:18.3]} 35. a4 {[%clk 0:00:03.7]} 35... Ke6 {[%clk 0:00:18]} 36. Rc6+ {[%clk 0:00:03]} 36... Kf5 {[%clk 0:00:16.1]} 37. e4# {[%clk 0:00:02.5]} 1-0

[Event "Live Chess"]
[Site "Chess.com"]
[Date "2010.12.06"]
[Round "-"]
[White "hipposcottimus"]
[Black "miudyk"]
[Result "1-0"]
[CurrentPosition "R2k4/1Q6/8/6p1/7p/7P/PP4P1/6K1 b - -"]
[Timezone "UTC"]
[ECO "B33"]
[ECOUrl "https://www.chess.com/openings/Sicilian-Defense-Open-3...cxd4-4.Nxd4"]
[UTCDate "2010.12.06"]
[UTCTime "22:28:58"]
[WhiteElo "1625"]
[BlackElo "1629"]
[TimeControl "60"]
[Termination "hipposcottimus won by checkmate"]
[StartTime "22:28:58"]
[EndDate "2010.12.06"]
[EndTime "22:31:04"]
[Link "https://www.chess.com/game/live/74733613"]

1. e4 {[%clk 0:01:00]} 1... c5 {[%clk 0:01:00]} 2. Nf3 {[%clk 0:00:58.6]} 2... Nc6 {[%clk 0:00:58.1]} 3. d4 {[%clk 0:00:57.9]} 3... cxd4 {[%clk 0:00:56.7]} 4. Nxd4 {[%clk 0:00:56.1]} 4... Nxd4 {[%clk 0:00:56.3]} 5. Qxd4 {[%clk 0:00:55.6]} 5... Nf6 {[%clk 0:00:55.2]} 6. e5 {[%clk 0:00:54.7]} 6... Ng8 {[%clk 0:00:53.8]} 7. f4 {[%clk 0:00:53.8]} 7... d6 {[%clk 0:00:53.4]} 8. Bc4 {[%clk 0:00:53.3]} 8... dxe5 {[%clk 0:00:51.8]} 9. Qxd8+ {[%clk 0:00:52.9]} 9... Kxd8 {[%clk 0:00:51]} 10. fxe5 {[%clk 0:00:52.6]} 10... g6 {[%clk 0:00:47.9]} 11. Nc3 {[%clk 0:00:52.2]} 11... Bg7 {[%clk 0:00:47.4]} 12. Bf4 {[%clk 0:00:50.4]} 12... h6 {[%clk 0:00:45.1]} 13. Nd5 {[%clk 0:00:49.7]} 13... g5 {[%clk 0:00:44.2]} 14. Bg3 {[%clk 0:00:49.4]} 14... Be6 {[%clk 0:00:42.7]} 15. Bb3 {[%clk 0:00:45.3]} 15... h5 {[%clk 0:00:42]} 16. h3 {[%clk 0:00:40.8]} 16... h4 {[%clk 0:00:41]} 17. Bh2 {[%clk 0:00:39]} 17... f6 {[%clk 0:00:34.6]} 18. Rd1 {[%clk 0:00:37.8]} 18... Ke8 {[%clk 0:00:30.5]} 19. Nc7+ {[%clk 0:00:35.9]} 19... Kf7 {[%clk 0:00:29.2]} 20. Nxa8 {[%clk 0:00:34.8]} 20... Bxb3 {[%clk 0:00:27.5]} 21. cxb3 {[%clk 0:00:33.3]} 21... fxe5 {[%clk 0:00:26.4]} 22. Nc7 {[%clk 0:00:32.5]} 22... Nf6 {[%clk 0:00:25.9]} 23. Bxe5 {[%clk 0:00:31.5]} 23... Re8 {[%clk 0:00:24]} 24. Nd5 {[%clk 0:00:30.5]} 24... Kg6 {[%clk 0:00:20.5]} 25. Nxf6 {[%clk 0:00:29.1]} 25... Bxf6 {[%clk 0:00:19.8]} 26. Bxf6 {[%clk 0:00:28.6]} 26... exf6+ {[%clk 0:00:19.2]} 27. Kf2 {[%clk 0:00:28.3]} 27... Kf5 {[%clk 0:00:18.8]} 28. Rhf1 {[%clk 0:00:27.9]} 28... Kg6 {[%clk 0:00:18.2]} 29. Kg1 {[%clk 0:00:27.6]} 29... Re7 {[%clk 0:00:17.8]} 30. Rd6 {[%clk 0:00:26.8]} 30... a6 {[%clk 0:00:17.5]} 31. Rdxf6+ {[%clk 0:00:26]} 31... Kg7 {[%clk 0:00:16.1]} 32. R6f5 {[%clk 0:00:25.6]} 32... Kh6 {[%clk 0:00:15.3]} 33. Rf6+ {[%clk 0:00:24.2]} 33... Kh7 {[%clk 0:00:12.8]} 34. Rf7+ {[%clk 0:00:23.2]} 34... Rxf7 {[%clk 0:00:12.3]} 35. Rxf7+ {[%clk 0:00:22.8]} 35... Kg6 {[%clk 0:00:12]} 36. Rf3 {[%clk 0:00:21.5]} 36... Kg7 {[%clk 0:00:11.3]} 37. Rf5 {[%clk 0:00:20]} 37... Kg6 {[%clk 0:00:11.1]} 38. Rd5 {[%clk 0:00:19.4]} 38... Kh6 {[%clk 0:00:10.8]} 39. Rd7 {[%clk 0:00:19.1]} 39... Kg6 {[%clk 0:00:10]} 40. Rxb7 {[%clk 0:00:18.3]} 40... Kh6 {[%clk 0:00:09.8]} 41. Rb6+ {[%clk 0:00:17.9]} 41... Kg7 {[%clk 0:00:08.4]} 42. Rxa6 {[%clk 0:00:17.6]} 42... Kh7 {[%clk 0:00:07.8]} 43. b4 {[%clk 0:00:16.8]} 43... Kg7 {[%clk 0:00:07.4]} 44. b5 {[%clk 0:00:16.5]} 44... Kh7 {[%clk 0:00:07]} 45. b6 {[%clk 0:00:16.3]} 45... Kg7 {[%clk 0:00:06.6]} 46. b7 {[%clk 0:00:16]} 46... Kf7 {[%clk 0:00:06.3]} 47. b8=Q {[%clk 0:00:15]} 47... Ke7 {[%clk 0:00:06]} 48. Qb7+ {[%clk 0:00:14.4]} 48... Kd8 {[%clk 0:00:04.7]} 49. Ra8# {[%clk 0:00:14.1]} 1-0

[Event "Live Chess"]
[Site "Chess.com"]
[Date "2010.12.06"]
[Round "-"]
[White "miudyk"]
[Black "hipposcottimus"]
[Result "0-1"]
[CurrentPosition "2k5/p1p5/2p5/2p1KN2/2P1P3/8/PP1N4/8 w - -"]
[Timezone "UTC"]
[ECO "C65"]
[ECOUrl "https://www.chess.com/openings/Ruy-Lopez-Opening-Berlin-Defense-4.Bxc6-dxc6-5.d3"]
[UTCDate "2010.12.06"]
[UTCTime "22:26:41"]
[WhiteElo "1637"]
[BlackElo "1617"]
[TimeControl "60"]
[Termination "hipposcottimus won on time"]
[StartTime "22:26:41"]
[EndDate "2010.12.06"]
[EndTime "22:28:49"]
[Link "https://www.chess.com/game/live/74732990"]

1. e4 {[%clk 0:01:00]} 1... e5 {[%clk 0:01:00]} 2. Nf3 {[%clk 0:00:59.7]} 2... Nc6 {[%clk 0:00:59.5]} 3. Bb5 {[%clk 0:00:59.1]} 3... Nf6 {[%clk 0:00:59.2]} 4. Bxc6 {[%clk 0:00:58.4]} 4... dxc6 {[%clk 0:00:58.9]} 5. d3 {[%clk 0:00:57.7]} 5... Bd6 {[%clk 0:00:58.7]} 6. O-O {[%clk 0:00:56]} 6... Nd7 {[%clk 0:00:58.2]} 7. h3 {[%clk 0:00:55.3]} 7... O-O {[%clk 0:00:57.7]} 8. Be3 {[%clk 0:00:53.5]} 8... f5 {[%clk 0:00:57.4]} 9. c3 {[%clk 0:00:51.6]} 9... f4 {[%clk 0:00:56.4]} 10. Bd2 {[%clk 0:00:50.4]} 10... Be7 {[%clk 0:00:56.2]} 11. Kh2 {[%clk 0:00:47]} 11... Bh4 {[%clk 0:00:55.9]} 12. Rg1 {[%clk 0:00:44.4]} 12... Rf6 {[%clk 0:00:54.3]} 13. g3 {[%clk 0:00:42.6]} 13... fxg3+ {[%clk 0:00:49.8]} 14. fxg3 {[%clk 0:00:41.9]} 14... Bxg3+ {[%clk 0:00:43]} 15. Rxg3 {[%clk 0:00:41.1]} 15... Qf8 {[%clk 0:00:42.7]} 16. Bh6 {[%clk 0:00:39.9]} 16... Nc5 {[%clk 0:00:42.3]} 17. Bxg7 {[%clk 0:00:38.7]} 17... Qf7 {[%clk 0:00:42]} 18. Bxf6+ {[%clk 0:00:37.4]} 18... Kf8 {[%clk 0:00:40]} 19. Bg7+ {[%clk 0:00:36.5]} 19... Kg8 {[%clk 0:00:39]} 20. Nxe5 {[%clk 0:00:35.7]} 20... Qf2+ {[%clk 0:00:35.8]} 21. Rg2 {[%clk 0:00:34.3]} 21... Qf4+ {[%clk 0:00:33.6]} 22. Kh1 {[%clk 0:00:32.3]} 22... Bxh3 {[%clk 0:00:31.5]} 23. Qg1 {[%clk 0:00:17.4]} 23... Bxg2+ {[%clk 0:00:29.6]} 24. Qxg2 {[%clk 0:00:16.9]} 24... Qc1+ {[%clk 0:00:26.6]} 25. Qg1 {[%clk 0:00:14.7]} 25... Qxg1+ {[%clk 0:00:25.1]} 26. Kxg1 {[%clk 0:00:14.3]} 26... Kxg7 {[%clk 0:00:24.8]} 27. Nd2 {[%clk 0:00:12.9]} 27... Kf6 {[%clk 0:00:24.5]} 28. Nef3 {[%clk 0:00:11.7]} 28... Rg8+ {[%clk 0:00:23.9]} 29. Kf2 {[%clk 0:00:10.7]} 29... Kf7 {[%clk 0:00:23.6]} 30. d4 {[%clk 0:00:10]} 30... h5 {[%clk 0:00:23.1]} 31. dxc5 {[%clk 0:00:09]} 31... Rh8 {[%clk 0:00:22.4]} 32. Rg1 {[%clk 0:00:08.5]} 32... h4 {[%clk 0:00:22]} 33. Rh1 {[%clk 0:00:07.6]} 33... h3 {[%clk 0:00:21.6]} 34. Ng1 {[%clk 0:00:06.8]} 34... Kg6 {[%clk 0:00:21]} 35. Rxh3 {[%clk 0:00:06]} 35... Rf8+ {[%clk 0:00:20.3]} 36. Ke3 {[%clk 0:00:05]} 36... Rg8 {[%clk 0:00:18.8]} 37. Rg3+ {[%clk 0:00:04.4]} 37... Kf7 {[%clk 0:00:18.5]} 38. Rxg8 {[%clk 0:00:04]} 38... Kxg8 {[%clk 0:00:18.3]} 39. Kd4 {[%clk 0:00:03.2]} 39... Kf7 {[%clk 0:00:17.9]} 40. Ke5 {[%clk 0:00:02.9]} 40... Ke7 {[%clk 0:00:17.6]} 41. Ngf3 {[%clk 0:00:02.6]} 41... Kd7 {[%clk 0:00:16.2]} 42. Nh4 {[%clk 0:00:02.3]} 42... b6 {[%clk 0:00:15.9]} 43. Nf5 {[%clk 0:00:01.9]} 43... bxc5 {[%clk 0:00:14.9]} 44. c4 {[%clk 0:00:00.1]} 44... Kc8 {[%clk 0:00:14.6]} 0-1